bitfinex/quotes_SOLUSD_20240826
["timestamp","ask_amount","ask_price","bid_price","bid_amount"]
[1724689460507,15.2858,157.81,157.73,15.8492]
[1724689460721,45.0,157.8,157.73,15.8492]
[1724689461420,6.3383,157.77,157.73,22.1888]
[1724689461720,45.0,157.76,157.7,15.8522]
[1724689462023,6.3392,157.75,157.7,15.8522]
[1724689463223,6.3388,157.76,157.71,6.3404]
[1724689464099,6.3388,157.76,157.7,15.8522]
[1724689464100,6.3388,157.76,157.72,6.3402]
[1724689467896,15.8442,157.79,157.69,47.1587]
[1724689467897,6.3379,157.79,157.69,47.1587]
[1724689468125,387.637,157.81,157.76,22.185]
[1724689468331,6.3372,157.8,157.76,22.185]
[1724689468617,381.3,157.81,157.74,6.3392]
[1724689468816,6.3387,157.76,157.73,15.8495]
[1724689469021,6.3387,157.76,157.72,6.3401]
[1724689472003,6.3393,157.75,157.71,6.3407]
[1724689472603,6.3388,157.76,157.71,6.3407]
[1724689474328,16.2781,157.79,157.7,15.8525]
[1724689474631,6.339,157.76,157.72,6.3403]
[1724689480337,6.3383,157.77,157.73,6.3398]
[1724689480544,6.3382,157.78,157.73,6.3398]
[1724689480705,6.3382,157.78,157.74,6.3394]
[1724689481625,6.3376,157.79,157.75,6.3391]
[1724689481822,6.3379,157.78,157.74,6.3394]
[1724689484340,6.3379,157.78,157.73,6.3398]
[1724689484635,15.8426,157.81,157.72,22.1905]
[1724689484840,6.3384,157.77,157.72,22.1905]
[1724689485010,6.3384,157.77,157.73,6.3397]
[1724689488445,6.3384,157.77,157.74,1.26776938]
[1724689489427,6.3384,157.77,157.73,6.3397]
[1724689490360,6.338,157.78,157.74,7.60696843]
[1724689490559,6.338,157.78,157.74,6.3392]
[1724689491137,381.3,157.82,157.74,6.3042]
[1724689491469,6.3372,157.8,157.76,22.1851]
[1724689492563,381.3,157.82,157.74,6.3042]
[1724689492735,6.3379,157.78,157.74,12.6434]
[1724689493669,6.3376,157.79,157.74,12.6434]
[1724689493842,45.0,157.81,157.73,22.1888]
[1724689494368,6.3382,157.78,157.74,6.3395]
[1724689497166,6.3376,157.79,157.74,6.3395]
[1724689498888,6.3376,157.79,157.75,6.3391]
[1724689499266,15.2396,157.83,157.76,6.3386]
[1724689500253,6.3369,157.81,157.76,6.3386]
[1724689500848,6.3371,157.8,157.76,6.3386]
[1724689502566,6.3368,157.81,157.77,6.3383]
[1724689502987,6.3366,157.82,157.77,6.3383]
[1724689503487,6.3366,157.82,157.78,6.3375]
[1724689505284,6.336,157.83,157.79,6.3375]
[1724689506165,6.3365,157.82,157.78,6.3378]
[1724689506389,16.1119,157.87,157.77,15.8455]
[1724689506568,6.3371,157.8,157.76,6.3386]
[1724689510281,6.3367,157.81,157.77,6.338]
[1724689513186,6.3363,157.82,157.78,6.3375]
[1724689513561,6.3367,157.81,157.76,15.8459]
[1724689513761,12.36679566,157.8,157.76,22.1844]
[1724689514192,6.3367,157.81,157.76,22.1844]
[1724689515093,6.3367,157.81,157.77,6.3383]
[1724689515965,15.838,157.85,157.76,15.8459]
[1724689515966,6.3364,157.82,157.78,6.3378]
[1724689516192,6.3364,157.82,157.76,15.8459]
[1724689516193,6.3369,157.81,157.76,22.1843]
[1724689518092,6.3369,157.81,157.77,6.3382]
[1724689518800,6.3362,157.83,157.79,6.3375]
[1724689518966,15.838,157.85,157.78,15.8445]
[1724689519170,20.0,157.84,157.78,15.8445]
[1724689520093,6.3363,157.82,157.78,22.1821]
[1724689521189,6.3362,157.83,157.79,6.3374]
[1724689522131,5.28771942,157.87,157.78,6.455]
[1724689522280,6.8998656,157.9,157.85,6.3347]
[1724689522480,6.3335,157.89,157.85,6.3347]
[1724689522782,0.5664656,157.9,157.81,30.8986]
[1724689522993,0.5664656,157.9,157.82,6.3362]
[1724689523684,6.3351,157.86,157.81,37.2349]
[1724689524124,6.3351,157.86,157.82,6.3362]
[1724689525316,6.3344,157.87,157.82,6.3362]
[1724689527885,6.3348,157.86,157.82,6.3362]
[1724689529415,6.3343,157.87,157.82,6.3362]
[1724689529589,61.3997656,157.9,157.81,30.8986]
[1724689529590,6.3339,157.88,157.81,30.8986]
[1724689530689,6.3343,157.87,157.83,6.3358]
[1724689531000,6.3343,157.87,157.82,6.3362]
[1724689532007,18.70109566,157.87,157.82,6.3362]
[1724689532207,15.8342,157.89,157.81,15.8414]
[1724689532393,15.8342,157.89,157.78,6.455]
[1724689532394,6.3358,157.84,157.79,6.3374]
[1724689532594,65.0,157.88,157.78,28.637]
[1724689532595,15.8362,157.87,157.78,28.637]
[1724689532803,45.0,157.86,157.78,28.637]
[1724689533019,18.70319566,157.82,157.78,28.637]
[1724689533188,12.36679566,157.82,157.76,6.3386]
[1724689533389,6.3374,157.8,157.75,15.8474]
[1724689534204,6.3368,157.81,157.76,6.3384]
[1724689534615,6.3372,157.8,157.76,6.3384]
[1724689535810,18.70399566,157.8,157.75,22.1862]
[1724689536017,6.3376,157.79,157.75,22.1862]
[1724689536896,12.36679566,157.8,157.76,6.3384]
[1724689537094,12.36679566,157.8,157.75,15.8474]
[1724689537713,6.3378,157.79,157.75,15.8474]
[1724689537910,6.337,157.81,157.77,6.3383]
[1724689538238,6.337,157.81,157.75,15.8474]
[1724689538239,6.337,157.81,157.76,7.60623377]
[1724689538732,6.337,157.81,157.77,1.26750226]
[1724689539059,6.337,157.81,157.76,6.3386]
[1724689539903,6.337,157.81,157.77,6.3382]
[1724689540089,6.337,157.81,157.76,6.3386]
[1724689540705,6.3372,157.8,157.76,6.3386]
[1724689540905,6.3375,157.79,157.75,15.8474]
[1724689541516,6.3372,157.8,157.75,22.1863]
[1724689542101,18.70359566,157.81,157.76,6.3386]
[1724689542412,6.3363,157.82,157.78,6.3379]
[1724689544241,6.3371,157.81,157.77,15.8455]
[1724689544534,6.3372,157.8,157.77,15.8455]
[1724689544715,6.3372,157.8,157.76,6.3383]
[1724689545106,6.3372,157.8,157.75,6.339]
[1724689545602,12.36679566,157.81,157.75,6.339]
[1724689545838,18.70429566,157.79,157.75,6.339]
[1724689546343,6.338,157.78,157.74,28.8537]
[1724689546510,18.70439566,157.79,157.75,6.3391]
[1724689547212,12.36679566,157.79,157.76,6.3387]
[1724689549334,12.36679566,157.79,157.74,22.5142]
[1724689549335,18.70429566,157.79,157.75,6.339]
[1724689551313,6.3375,157.79,157.75,6.339]
[1724689552447,12.36679566,157.81,157.76,15.8463]
[1724689552608,6.3368,157.81,157.77,6.338]
[1724689554344,6.3371,157.8,157.76,15.8463]
[1724689554516,15.8392,157.84,157.74,6.6659]
[1724689554850,65.0,157.83,157.74,6.6659]
[1724689555344,6.3392,157.75,157.71,6.3406]
[1724689555545,15.0194,157.79,157.7,15.8524]
[1724689555853,6.3396,157.74,157.7,22.1935]
[1724689556020,60.8454,157.78,157.7,15.8524]
[1724689556225,6.3391,157.75,157.7,22.1935]
[1724689556545,18.70589566,157.75,157.7,22.1935]
[1724689556740,18.70669566,157.73,157.67,15.8557]
[1724689557039,18.70669566,157.73,157.68,7.92903456]
[1724689557225,18.70669566,157.73,157.68,6.3416]
[1724689557719,18.70669566,157.73,157.67,15.8557]
[1724689557720,6.3396,157.74,157.69,6.3414]
[1724689557941,6.3392,157.75,157.7,6.3407]
[1724689558140,6.3388,157.76,157.71,6.3406]
[1724689558343,15.0194,157.79,157.71,15.8512]
[1724689558661,6.3383,157.77,157.73,6.3397]
[1724689562872,6.3387,157.76,157.72,6.3402]
[1724689563161,6.3387,157.76,157.71,15.8512]
[1724689563162,6.3383,157.78,157.73,15.8493]
[1724689563328,6.3378,157.79,157.73,15.8493]
[1724689563532,22.596,157.83,157.75,15.8474]
[1724689563829,6.3364,157.82,157.78,6.3378]
[1724689566735,6.018703,157.82,157.78,6.3378]
[1724689566950,16.1316,157.83,157.79,6.3374]
[1724689567155,22.4676,157.83,157.78,6.3378]
[1724689568250,6.3363,157.82,157.78,6.3378]
[1724689568756,22.2211,157.87,157.79,15.8435]
[1724689568757,37.3803,157.87,157.79,15.8435]
[1724689568967,77.36679566,157.86,157.79,15.8435]
[1724689569130,6.3352,157.85,157.79,15.8435]
[1724689569442,6.3352,157.85,157.8,6.337]
[1724689570467,6.3352,157.85,157.81,1.2671545]
[1724689570649,6.3352,157.85,157.8,6.337]
[1724689571041,6.3355,157.84,157.81,1.26716823]
[1724689571257,6.3355,157.84,157.8,6.337]
[1724689571461,6.3355,157.84,157.81,1.26717598]
[1724689571640,6.3352,157.85,157.8,6.337]
[1724689572763,15.1592,157.87,157.81,15.8415]
[1724689572966,21.4938,157.87,157.82,6.336]
[1724689573461,6.3349,157.86,157.82,6.336]
[1724689573770,6.3349,157.86,157.77,22.6093]
[1724689573771,6.3365,157.82,157.78,15.8441]
[1724689574079,6.3365,157.82,157.78,22.1819]
[1724689575441,6.3374,157.8,157.75,22.1865]
[1724689575667,6.3374,157.8,157.76,6.3386]
[1724689575870,6.3368,157.81,157.77,6.3383]
[1724689576042,6.3364,157.82,157.77,6.3383]
[1724689577353,6.3364,157.82,157.78,6.3379]
[1724689578068,6.336,157.83,157.79,6.3373]
[1724689578246,6.3352,157.85,157.8,6.3367]
[1724689578447,6.3352,157.85,157.8,6.337]
[1724689578862,6.3356,157.84,157.8,6.337]
[1724689579042,6.3356,157.84,157.79,22.1804]
[1724689580364,15.1592,157.87,157.79,15.843]
[1724689580573,45.0,157.86,157.79,15.843]
[1724689580876,6.3363,157.82,157.79,15.843]
[1724689581377,6.336,157.83,157.79,15.843]
[1724689581950,6.3366,157.82,157.78,6.3376]
[1724689582464,6.336,157.83,157.79,6.3374]
[1724689583697,6.336,157.83,157.78,22.1822]
[1724689585570,6.3363,157.82,157.78,22.1822]
[1724689586586,6.336,157.83,157.78,22.1822]
[1724689588674,6.3363,157.82,157.78,22.1822]
[1724689588872,18.70309566,157.82,157.78,22.1822]
[1724689590775,12.36679566,157.84,157.73,22.6014]
[1724689590970,6.3374,157.8,157.76,6.3387]
[1724689591801,6.338,157.78,157.74,22.1879]
[1724689594291,16.0225,157.81,157.7,6.62851701]
[1724689594472,16.0225,157.81,157.69,22.7186]
[1724689594473,6.3388,157.76,157.72,6.34]
[1724689594666,6.3403,157.72,157.68,15.8545]
[1724689595002,6.3395,157.75,157.68,15.8545]
[1724689595170,6.3395,157.74,157.7,6.3408]
[1724689595372,6.3395,157.74,157.69,6.3415]
[1724689596076,21.9949,157.77,157.68,15.8545]
[1724689596281,6.3398,157.74,157.69,6.3415]
[1724689596496,45.0,157.76,157.69,6.3415]
[1724689597089,6.34,157.73,157.68,22.1964]
[1724689597986,6.34,157.73,157.69,6.3414]
[1724689600098,6.34,157.73,157.68,22.1964]
[1724689601003,6.34,157.73,157.69,6.3415]
[1724689602505,6.3396,157.74,157.69,6.3415]
[1724689603784,6.3403,157.72,157.68,22.1964]
[1724689603993,45.0,157.76,157.65,44.46002444]
[1724689603994,6.3408,157.71,157.65,21.9707]
[1724689604508,32.4899,157.75,157.65,15.8572]
[1724689604712,65.0,157.74,157.65,15.8572]
[1724689604879,6.3417,157.69,157.65,15.8572]
[1724689605080,6.3417,157.69,157.65,22.2003]
[1724689609319,6.3412,157.7,157.65,22.2003]
[1724689610399,6.3412,157.7,157.66,6.3426]
[1724689611011,6.3412,157.7,157.66,7.61099456]
[1724689611327,6.341,157.71,157.67,6.342]
[1724689611498,6.341,157.71,157.66,6.3426]
[1724689611931,6.3418,157.69,157.65,22.2003]
[1724689612596,6.3419,157.68,157.65,15.8572]
[1724689613406,6.3416,157.69,157.65,15.8572]
[1724689614157,6.342,157.68,157.65,15.8572]
[1724689614321,6.342,157.68,157.63,6.3438]
[1724689614623,6.342,157.68,157.64,6.3435]
[1724689615896,6.3429,157.66,157.62,22.2042]
[1724689616103,6.3429,157.66,157.62,15.8603]
[1724689618624,6.3432,157.65,157.61,6.3447]
[1724689618802,6.3432,157.65,157.59,63.2068]
[1724689618803,6.3436,157.64,157.6,6.345]
[1724689618999,15.8542,157.69,157.59,22.2089]
[1724689619323,6.3431,157.65,157.6,6.3451]
[1724689619496,6.3431,157.65,157.61,7.6134926]
[1724689619904,6.3431,157.65,157.61,6.3447]
[1724689620323,6.3437,157.64,157.6,6.345]
[1724689620692,6.3437,157.64,157.59,22.2088]
[1724689622124,6.3437,157.64,157.6,6.3451]
[1724689627534,65.0,157.68,157.61,6.3447]
[1724689627731,6.343,157.66,157.61,6.3447]
[1724689627933,6.3432,157.65,157.61,6.3447]
[1724689628310,6.3436,157.64,157.6,6.3451]
[1724689628530,6.3443,157.62,157.59,15.8634]
[1724689631411,6.3448,157.61,157.57,6.3463]
[1724689634737,6.3445,157.62,157.58,6.3459]
[1724689639417,6.3442,157.63,157.59,6.3455]
[1724689639918,381.3,157.67,157.56,38.36916209]
[1724689640243,387.6426,157.67,157.62,6.3442]
[1724689641030,387.6426,157.67,157.63,6.3439]
[1724689641237,387.6426,157.67,157.6,15.8626]
[1724689641950,6.342,157.68,157.64,6.3435]
[1724689642114,6.3412,157.7,157.65,6.3428]
[1724689645517,15.8526,157.71,157.61,15.7558]
[1724689645742,65.0,157.7,157.59,21.9051]
[1724689645945,6.343,157.66,157.62,6.3443]
[1724689646243,6.3424,157.67,157.63,6.3439]
[1724689647343,6.3424,157.67,157.62,6.3443]
[1724689649946,6.3424,157.67,157.63,6.3439]
[1724689652923,6.3422,157.68,157.63,6.3439]
[1724689653619,6.3422,157.68,157.61,15.8612]
[1724689653833,6.3422,157.68,157.64,6.3434]
[1724689655463,6.3422,157.68,157.63,22.2032]
[1724689655633,6.3425,157.67,157.63,22.2032]
[1724689658527,6.3429,157.66,157.63,15.8593]
[1724689660458,6.3424,157.67,157.63,22.2032]
[1724689661643,6.3424,157.67,157.63,15.8593]
[1724689663367,6.3424,157.67,157.63,22.2032]
[1724689675478,6.3436,157.64,157.59,6.0421]
[1724689675652,6.3428,157.66,157.61,6.3444]
[1724689675843,51.3428,157.66,157.61,6.3444]
[1724689676846,6.3428,157.66,157.62,6.3441]
[1724689679253,6.3428,157.66,157.61,22.2061]
[1724689680580,6.3428,157.66,157.62,6.3443]
[1724689682966,6.3431,157.65,157.61,22.206]
[1724689683480,6.3428,157.66,157.62,6.3442]
[1724689686147,6.5805,157.69,157.61,15.8614]
[1724689686347,6.3432,157.65,157.61,22.2061]
[1724689689580,6.3427,157.66,157.62,6.3442]
[1724689691285,6.3427,157.66,157.63,1.58834363]
[1724689691456,6.3427,157.66,157.62,6.3442]
[1724689691969,6.3432,157.65,157.61,22.2058]
[1724689692155,6.3432,157.65,157.62,1.58838515]
[1724689692478,6.3432,157.65,157.61,22.2058]
[1724689692670,6.3432,157.65,157.62,1.58841863]
[1724689692867,6.3432,157.65,157.61,22.2058]
[1724689693077,6.3432,157.65,157.62,1.58843235]
[1724689693379,6.3432,157.65,157.61,22.2058]
[1724689693580,6.3432,157.65,157.62,1.5884349]
[1724689693785,6.3432,157.65,157.61,22.2058]
[1724689694189,6.3444,157.62,157.58,22.2103]
[1724689694386,6.3444,157.62,157.59,1.58860796]
[1724689694585,6.3444,157.62,157.6,1.58860796]
[1724689694759,16.5062,157.67,157.58,22.2103]
[1724689694760,6.344,157.63,157.58,22.2103]
[1724689695068,6.344,157.63,157.59,1.58856556]
[1724689695266,407.05168627,157.69,157.6,15.8626]
[1724689695470,6.3429,157.66,157.61,7.93285747]
[1724689695690,6.3432,157.65,157.61,6.3444]
[1724689696080,6.3432,157.65,157.6,22.2076]
[1724689696289,6.3432,157.65,157.61,1.5885107]
[1724689696458,6.3436,157.64,157.6,22.2076]
[1724689696658,6.3436,157.64,157.61,1.5885029]
[1724689696857,6.3436,157.64,157.6,22.2076]
[1724689697192,6.344,157.63,157.61,1.58849979]
[1724689697377,6.344,157.63,157.6,15.8626]
[1724689697687,6.344,157.63,157.61,1.58850839]
[1724689697864,6.344,157.63,157.6,15.8626]
[1724689698062,6.3436,157.64,157.61,1.58850839]
[1724689698271,6.3436,157.64,157.6,22.2077]
[1724689699093,6.3436,157.64,157.61,1.58849721]
[1724689699260,6.3436,157.64,157.6,22.2077]
[1724689700488,6.3436,157.64,157.61,1.58848892]
[1724689700685,6.3436,157.64,157.6,22.2077]
[1724689705391,6.344,157.63,157.6,15.8626]
[1724689705596,6.344,157.63,157.59,6.3454]
[1724689705759,6.344,157.63,157.6,1.58851113]
[1724689705961,6.344,157.63,157.59,6.3454]
[1724689706195,6.344,157.63,157.6,1.58851113]
[1724689706492,6.344,157.63,157.59,6.3454]
[1724689706788,6.344,157.63,157.6,1.58851143]
[1724689706993,6.344,157.63,157.59,6.3454]
[1724689707165,6.344,157.63,157.6,1.58851942]
[1724689707367,6.344,157.63,157.59,6.3454]
[1724689707574,15.8561,157.67,157.6,1.58851806]
[1724689707762,65.0,157.66,157.57,31.621]
[1724689707969,65.0,157.66,157.58,1.58860502]
[1724689708174,6.3446,157.62,157.59,1.58860502]
[1724689708372,6.3446,157.62,157.6,1.58858132]
[1724689708592,6.3446,157.62,157.58,6.3456]
[1724689708803,6.3446,157.62,157.59,1.58865355]
[1724689708967,6.3446,157.62,157.58,6.3456]
[1724689709284,6.3446,157.62,157.59,1.58858687]
[1724689709481,6.3446,157.62,157.58,6.3456]
[1724689709697,6.3446,157.62,157.59,1.58858687]
[1724689709913,6.3446,157.62,157.58,6.3456]
[1724689710201,6.3446,157.62,157.59,1.58858718]
[1724689710404,6.3446,157.62,157.58,6.3456]
[1724689710703,6.3446,157.62,157.59,1.58858718]
[1724689711004,6.3446,157.62,157.58,6.3456]
[1724689711212,6.3446,157.62,157.59,1.58862036]
[1724689711380,6.3446,157.62,157.58,6.3456]
[1724689711571,6.3446,157.62,157.59,1.58862036]
[1724689711774,6.3446,157.62,157.58,6.3456]
[1724689712097,6.3446,157.62,157.59,1.58858718]
[1724689712295,6.3446,157.62,157.58,6.3456]
[1724689712600,6.3446,157.62,157.59,1.58858551]
[1724689712899,6.3446,157.62,157.58,6.3456]
[1724689713094,6.3446,157.62,157.59,1.58858718]
[1724689713298,6.3446,157.62,157.58,6.3456]
[1724689713475,6.3446,157.62,157.59,1.58858718]
[1724689713675,6.3446,157.62,157.58,6.3456]
[1724689713896,6.3441,157.63,157.59,1.58858687]
[1724689714227,6.3441,157.63,157.58,6.3456]
[1724689714381,6.3441,157.63,157.59,1.58858656]
[1724689714708,6.3441,157.63,157.58,6.3456]
[1724689715003,6.3441,157.63,157.59,1.58858656]
[1724689715203,6.3441,157.63,157.58,6.3456]
[1724689715405,6.3441,157.63,157.59,1.58861975]
[1724689715606,6.3441,157.63,157.58,6.3456]
[1724689715805,6.3441,157.63,157.59,1.58861975]
[1724689716020,6.3444,157.62,157.58,6.3456]
[1724689716181,6.3444,157.62,157.59,1.58862036]
[1724689716383,6.3444,157.62,157.58,6.3456]
[1724689716606,6.3444,157.62,157.59,1.58861751]
[1724689716793,6.3444,157.62,157.58,6.3456]
[1724689716990,6.3444,157.62,157.59,1.58861721]
[1724689717192,6.3444,157.62,157.58,6.3456]
[1724689717399,6.3451,157.6,157.59,1.58861753]
[1724689717599,6.3462,157.58,157.54,15.8683]
[1724689717909,6.3462,157.58,157.55,1.58887784]
[1724689718213,6.3462,157.58,157.56,1.58890399]
[1724689718506,6.3462,157.58,157.54,22.2158]
[1724689718877,6.3462,157.58,157.55,1.58889734]
[1724689719110,6.3462,157.58,157.56,1.58889734]
[1724689719302,6.3457,157.59,157.55,6.3468]
[1724689719614,6.3457,157.59,157.56,1.58888009]
[1724689719907,6.3457,157.59,157.55,6.3468]
[1724689720214,6.3457,157.59,157.56,1.58887978]
[1724689720383,6.3457,157.59,157.55,6.3468]
[1724689720584,6.3457,157.59,157.56,1.58887978]
[1724689720906,6.3457,157.59,157.55,6.3468]
[1724689721108,6.3457,157.59,157.56,1.58888777]
[1724689721281,6.3457,157.59,157.55,6.3468]
[1724689721486,6.3457,157.59,157.56,1.58888789]
[1724689721698,6.3457,157.59,157.55,6.3468]
[1724689721897,6.3457,157.59,157.56,1.58888684]
[1724689722105,6.3457,157.59,157.55,6.3468]
[1724689722310,6.3457,157.59,157.56,1.58887842]
[1724689722604,6.3457,157.59,157.55,6.3468]
[1724689722915,6.3457,157.59,157.56,1.58887947]
[1724689723119,6.3457,157.59,157.55,6.3468]
[1724689724413,15.745,157.64,157.56,15.8662]
[1724689724633,6.3436,157.64,157.6,6.3448]
[1724689725716,6.3432,157.65,157.61,6.3446]
[1724689727590,32.4345,157.68,157.6,15.8626]
[1724689727789,6.3448,157.61,157.57,38.7215]
[1724689728012,6.3448,157.61,157.58,1.58857698]
[1724689728308,6.3445,157.62,157.57,38.7215]
[1724689728498,6.3445,157.62,157.58,1.58858972]
[1724689728697,6.3445,157.62,157.57,38.7215]
[1724689728915,6.3448,157.61,157.58,1.58864013]
[1724689729195,6.3448,157.61,157.57,15.8653]
[1724689729520,6.3448,157.61,157.57,22.2116]
[1724689730627,6.3451,157.6,157.57,15.8653]
[1724689730810,31.7157,157.66,157.53,15.6892]
[1724689731019,6.346,157.58,157.53,15.6892]
[1724689731188,6.346,157.58,157.54,1.58881257]
[1724689731395,6.346,157.58,157.55,1.58881257]
[1724689731615,6.346,157.58,157.53,15.6892]
[1724689731812,6.346,157.58,157.54,1.58893223]
[1724689732013,6.346,157.58,157.55,1.58893223]
[1724689732192,6.346,157.58,157.53,15.6892]
[1724689732395,6.346,157.58,157.54,7.93639213]
[1724689732596,6.346,157.58,157.55,1.58889213]
[1724689732822,6.346,157.58,157.54,6.3475]
[1724689733029,6.346,157.58,157.55,1.58891545]
[1724689733200,6.346,157.58,157.54,6.3475]
[1724689733404,6.346,157.58,157.55,1.5889056]
[1724689733599,6.346,157.58,157.54,6.3475]
[1724689733800,6.346,157.58,157.55,1.58888071]
[1724689734013,6.346,157.58,157.54,6.3475]
[1724689734201,6.346,157.58,157.55,1.5888804]
[1724689734401,6.346,157.58,157.54,6.3475]
[1724689734601,6.346,157.58,157.55,1.58891471]
[1724689734923,6.346,157.58,157.53,22.2174]
[1724689735118,15.8612,157.62,157.51,0.241443]
[1724689735119,15.8634,157.6,157.54,1.58898127]
[1724689735298,45.0,157.59,157.51,5.09134629]
[1724689735498,45.0,157.59,157.52,1.58903634]
[1724689735808,45.0,157.59,157.53,1.58903634]
[1724689736113,45.0,157.59,157.54,1.58903634]
[1724689736317,45.0,157.59,157.51,3.82015804]
[1724689736499,6.3464,157.57,157.52,7.93734464]
[1724689736714,6.3464,157.57,157.53,1.58904464]
[1724689736905,6.3464,157.57,157.52,6.3483]
[1724689737122,6.3464,157.57,157.53,1.58905707]
[1724689737323,6.3464,157.57,157.52,6.3483]
[1724689737628,6.3464,157.57,157.53,1.58905707]
[1724689737832,6.3464,157.57,157.52,6.3483]
[1724689738013,6.3464,157.57,157.53,1.58903681]
[1724689738216,6.3461,157.58,157.53,6.3479]
[1724689740533,6.3464,157.57,157.53,6.3479]
[1724689741325,45.0,157.59,157.52,15.8705]
[1724689741625,6.3465,157.57,157.53,1.58906687]
[1724689741831,6.3465,157.57,157.53,6.3479]
[1724689742203,6.3465,157.57,157.52,22.2187]
[1724689742535,6.3457,157.59,157.54,6.3472]
[1724689742708,387.4891,157.62,157.54,6.3472]
[1724689742709,6.3459,157.58,157.54,6.3472]
[1724689743125,387.4891,157.62,157.54,6.3472]
[1724689743326,20.0,157.61,157.54,6.3472]
[1724689743523,6.3457,157.59,157.54,6.3472]
[1724689744505,6.3459,157.58,157.54,6.3472]
[1724689745719,6.3459,157.58,157.53,6.3478]
[1724689747135,6.3457,157.59,157.54,6.3475]
[1724689747437,6.3452,157.6,157.55,6.3471]
[1724689747607,6.3455,157.59,157.55,6.3471]
[1724689748313,6.3453,157.6,157.54,22.2591]
[1724689748509,6.3453,157.6,157.55,6.3469]
[1724689748813,20.0,157.61,157.55,6.3469]
[1724689748814,6.3456,157.59,157.55,6.3469]
[1724689749343,6.3456,157.59,157.54,22.2591]
[1724689749503,6.3456,157.59,157.54,28.6065]
[1724689750235,6.3469,157.56,157.54,6.3905]
[1724689750411,35.8624,157.61,157.51,0.241443]
[1724689750616,45.0,157.6,157.52,1.58903745]
[1724689750816,45.0,157.6,157.53,1.58903745]
[1724689751141,45.0,157.6,157.51,0.241443]
[1724689751353,6.3465,157.57,157.52,7.93714906]
[1724689751641,6.3465,157.57,157.53,1.58904906]
[1724689751838,6.3465,157.57,157.52,6.3481]
[1724689752150,6.3465,157.57,157.53,1.58906427]
[1724689752357,6.3465,157.57,157.52,6.3481]
[1724689752514,6.3465,157.57,157.53,1.58906427]
[1724689752713,6.3465,157.57,157.52,6.3481]
[1724689752910,6.3465,157.57,157.53,1.5890546]
[1724689753110,6.3465,157.57,157.52,6.3481]
[1724689753308,6.3465,157.57,157.53,1.5890546]
[1724689753543,6.3465,157.57,157.52,6.3481]
[1724689753839,6.3465,157.57,157.53,1.58905576]
[1724689754039,6.3465,157.57,157.52,6.3481]
[1724689754233,6.3465,157.57,157.53,1.5890798]
[1724689754422,6.3465,157.57,157.52,6.3481]
[1724689754932,6.3465,157.57,157.53,1.58909869]
[1724689755131,6.3465,157.57,157.52,6.3481]
[1724689755330,6.3465,157.57,157.53,1.58906548]
[1724689755644,6.3465,157.57,157.52,6.3481]
[1724689755826,6.3465,157.57,157.53,1.58906654]
[1724689756016,6.3465,157.57,157.52,6.3481]
[1724689756447,6.3465,157.57,157.53,1.58908803]
[1724689756751,6.3465,157.57,157.52,6.3481]
[1724689757214,6.3471,157.56,157.51,0.241443]
[1724689757416,6.3471,157.56,157.52,1.58912014]
[1724689757647,6.3471,157.56,157.51,6.589843]
[1724689757847,6.3472,157.55,157.52,1.58914411]
[1724689758015,6.3472,157.55,157.51,0.241443]
[1724689758220,6.3472,157.55,157.52,1.58914752]
[1724689758529,6.3472,157.55,157.51,6.590143]
[1724689763162,15.8644,157.59,157.52,6.3481]
[1724689763458,65.0,157.58,157.52,6.3481]